[Event "Titled Tuesday Blitz January 10 Early 2023"]
[White "Fayzullaev, Akmal"]
[Black "Horcajuelo Rocamora, Martin"]
[WhiteFideId "14200554"]
[BlackFideId "24573027"]
[WhiteElo "2391"]
[BlackElo "2107"]
[Result "1-0"]
[Round "08"]
[TimeControl "180+2"]
[Date "2023.01.10"]
[WhiteClock "0:00:42"]
[BlackClock "0:00:13"]

1. e4 {[%clk 0:02:58]}  b6 {[%clk 0:02:59]} 2. d4 {[%clk 0:02:55]}  Bb7 {[%clk 0:02:59]} 3. Bd3 {[%clk 0:02:55]}  d6 {[%clk 0:02:56]} 4. f4 {[%clk 0:02:51]}  Nd7 {[%clk 0:02:54]} 5. Nf3 {[%clk 0:02:51]}  e5 {[%clk 0:02:48]} 6. fxe5 {[%clk 0:02:46]}  dxe5 {[%clk 0:02:49]} 7. d5 {[%clk 0:02:47]}  Ngf6 {[%clk 0:02:48]} 8. Nc3 {[%clk 0:02:45]}  Bc5 {[%clk 0:02:41]} 9. Na4 {[%clk 0:02:38]}  Bd6 {[%clk 0:02:41]} 10. O-O {[%clk 0:02:38]}  a6 {[%clk 0:02:38]} 11. c4 {[%clk 0:02:36]}  O-O {[%clk 0:02:33]} 12. Kh1 {[%clk 0:02:34]}  Nc5 {[%clk 0:02:26]} 13. Nxc5 {[%clk 0:02:32]}  Bxc5 {[%clk 0:02:25]} 14. Bg5 {[%clk 0:02:21]}  h6 {[%clk 0:02:22]} 15. Bh4 {[%clk 0:02:17]}  g5 {[%clk 0:02:18]} 16. Bg3 {[%clk 0:02:16]}  Ng4 {[%clk 0:02:07]} 17. Qd2 {[%clk 0:02:11]}  f6 {[%clk 0:01:34]} 18. h3 {[%clk 0:02:00]}  Ne3 {[%clk 0:01:34]} 19. Rfe1 {[%clk 0:02:00]}  a5 {[%clk 0:01:22]} 20. Rxe3 {[%clk 0:01:57]}  Bxe3 {[%clk 0:01:23]} 21. Qxe3 {[%clk 0:01:58]}  Bc8 {[%clk 0:01:23]} 22. Rf1 {[%clk 0:01:56]}  Qe7 {[%clk 0:01:22]} 23. Nh2 {[%clk 0:01:53]}  h5 {[%clk 0:01:22]} 24. h4 {[%clk 0:01:50]}  Bd7 {[%clk 0:01:12]} 25. Nf3 {[%clk 0:01:45]}  g4 {[%clk 0:00:59]} 26. Nd2 {[%clk 0:01:38]}  Kg7 {[%clk 0:00:55]} 27. Rf2 {[%clk 0:01:36]}  a4 {[%clk 0:00:39]} 28. Nf1 {[%clk 0:01:30]}  Ra5 {[%clk 0:00:31]} 29. Qd2 {[%clk 0:01:26]}  Rc5 {[%clk 0:00:22]} 30. Ne3 {[%clk 0:01:18]}  f5 {[%clk 0:00:18]} 31. Nxf5+ {[%clk 0:01:04]}  Bxf5 {[%clk 0:00:18]} 32. Rxf5 {[%clk 0:01:04]}  Rxf5 {[%clk 0:00:18]} 33. exf5 {[%clk 0:01:05]}  e4 {[%clk 0:00:19]} 34. Qe3 {[%clk 0:01:02]}  Kf7 {[%clk 0:00:16]} 35. Be2 {[%clk 0:00:58]}  Qf6 {[%clk 0:00:16]} 36. Qxe4 {[%clk 0:00:56]}  c6 {[%clk 0:00:15]} 37. d6 {[%clk 0:00:44]}  Rxf5 {[%clk 0:00:15]} 38. Qxc6 {[%clk 0:00:42]}  Rc5 {[%clk 0:00:14]} 39. Qd7+ {[%clk 0:00:41]}  Kg6 {[%clk 0:00:14]} 40. Bd3+ {[%clk 0:00:41]}  Rf5 {[%clk 0:00:12]} 41. Bxf5+ {[%clk 0:00:40]}  Qxf5 {[%clk 0:00:12]} 42. Qxf5+ {[%clk 0:00:41]}  Kxf5 {[%clk 0:00:13]} 43. d7 {[%clk 0:00:42]} 1-0


[Site "https://www.chess.com"]

[Event "Titled Tuesday Blitz January 10 Early 2023"]
[White "Ezat, Mohamed"]
[Black "Andreev, Konstantin"]
[WhiteFideId "10600906"]
[BlackFideId "24239305"]
[WhiteElo "2402"]
[BlackElo "2195"]
[Result "0-1"]
[Round "08"]
[TimeControl "180+2"]
[Date "2023.01.10"]
[WhiteClock "0:00:02"]
[BlackClock "0:00:07"]

1. d4 {[%clk 0:02:36]}  Nf6 {[%clk 0:02:59]} 2. Nf3 {[%clk 0:02:37]}  d5 {[%clk 0:02:58]} 3. Nc3 {[%clk 0:02:35]}  a6 {[%clk 0:02:50]} 4. Bg5 {[%clk 0:02:35]}  c5 {[%clk 0:02:49]} 5. e3 {[%clk 0:02:30]}  Nc6 {[%clk 0:02:45]} 6. Be2 {[%clk 0:02:25]}  e6 {[%clk 0:02:44]} 7. O-O {[%clk 0:02:25]}  b5 {[%clk 0:02:40]} 8. Ne5 {[%clk 0:02:24]}  Bb7 {[%clk 0:02:39]} 9. f4 {[%clk 0:02:16]}  Be7 {[%clk 0:02:38]} 10. f5 {[%clk 0:02:12]}  exf5 {[%clk 0:02:21]} 11. Rxf5 {[%clk 0:02:11]}  h6 {[%clk 0:02:21]} 12. Bh4 {[%clk 0:02:06]}  Nxe5 {[%clk 0:02:04]} 13. dxe5 {[%clk 0:02:02]}  Ne4 {[%clk 0:02:04]} 14. Bxe7 {[%clk 0:01:35]}  Nxc3 {[%clk 0:01:41]} 15. Bxd8 {[%clk 0:01:32]}  Nxd1 {[%clk 0:01:38]} 16. Bb6 {[%clk 0:01:27]}  Nxe3 {[%clk 0:01:38]} 17. Rf3 {[%clk 0:01:24]}  Nxc2 {[%clk 0:01:37]} 18. Rd1 {[%clk 0:01:14]}  Nd4 {[%clk 0:01:36]} 19. Rf2 {[%clk 0:01:14]}  Nxe2+ {[%clk 0:01:36]} 20. Rxe2 {[%clk 0:01:14]}  c4 {[%clk 0:01:25]} 21. e6 {[%clk 0:01:14]}  fxe6 {[%clk 0:01:00]} 22. Rxe6+ {[%clk 0:01:13]}  Kd7 {[%clk 0:01:01]} 23. Rg6 {[%clk 0:01:12]}  Rhe8 {[%clk 0:01:01]} 24. Rxg7+ {[%clk 0:00:52]}  Re7 {[%clk 0:01:01]} 25. Rg6 {[%clk 0:00:50]}  Re6 {[%clk 0:01:00]} 26. Rg7+ {[%clk 0:00:50]}  Kc6 {[%clk 0:01:00]} 27. Bf2 {[%clk 0:00:42]}  Rae8 {[%clk 0:00:57]} 28. a4 {[%clk 0:00:41]}  b4 {[%clk 0:00:52]} 29. a5 {[%clk 0:00:41]}  R8e7 {[%clk 0:00:49]} 30. Rg8 {[%clk 0:00:40]}  Kb5 {[%clk 0:00:48]} 31. Rb8 {[%clk 0:00:27]}  Kxa5 {[%clk 0:00:25]} 32. Bc5 {[%clk 0:00:26]}  Rc7 {[%clk 0:00:20]} 33. Bd4 {[%clk 0:00:19]}  Kb5 {[%clk 0:00:18]} 34. Rf1 {[%clk 0:00:19]}  c3 {[%clk 0:00:16]} 35. bxc3 {[%clk 0:00:18]}  bxc3 {[%clk 0:00:17]} 36. Rb1+ {[%clk 0:00:18]}  Kc4 {[%clk 0:00:17]} 37. Bb6 {[%clk 0:00:18]}  Rd7 {[%clk 0:00:15]} 38. Ba5 {[%clk 0:00:17]}  d4 {[%clk 0:00:15]} 39. Rb4+ {[%clk 0:00:14]}  Kd3 {[%clk 0:00:15]} 40. Rf8 {[%clk 0:00:10]}  Bd5 {[%clk 0:00:10]} 41. Rf1 {[%clk 0:00:08]}  c2 {[%clk 0:00:10]} 42. Ra4 {[%clk 0:00:04]}  Rde7 {[%clk 0:00:09]} 43. Ra3+ {[%clk 0:00:04]}  Kc4 {[%clk 0:00:10]} 44. Bd2 {[%clk 0:00:02]}  Re2 {[%clk 0:00:09]} 45. Bc1 {[%clk 0:00:02]}  Re1 {[%clk 0:00:09]} 46. Ra4+ {[%clk 0:00:03]}  Kb5 {[%clk 0:00:09]} 47. Rxd4 {[%clk 0:00:03]}  Kc5 {[%clk 0:00:07]} 48. Rd2 {[%clk 0:00:03]}  Bc4 {[%clk 0:00:07]} 49. Rxc2 {[%clk 0:00:02]}  Rxf1# {[%clk 0:00:07]} 0-1


[Site "https://www.chess.com"]

[Event "Titled Tuesday Blitz January 10 Early 2023"]
[White "Jimenez, Joaquin"]
[Black "Martynov, Pavel"]
[WhiteFideId "109860"]
[BlackFideId "4101260"]
[WhiteElo "2195"]
[BlackElo "2414"]
[Result "1-0"]
[Round "08"]
[TimeControl "180+2"]
[Date "2023.01.10"]
[WhiteClock "0:00:50"]
[BlackClock "0:00:08"]

1. e4 {[%clk 0:03:00]}  c5 {[%clk 0:02:59]} 2. Nf3 {[%clk 0:03:00]}  e6 {[%clk 0:02:59]} 3. d4 {[%clk 0:03:00]}  cxd4 {[%clk 0:03:00]} 4. Nxd4 {[%clk 0:03:01]}  Nc6 {[%clk 0:03:01]} 5. Nb5 {[%clk 0:03:00]}  d6 {[%clk 0:03:00]} 6. Bf4 {[%clk 0:03:00]}  e5 {[%clk 0:03:01]} 7. Be3 {[%clk 0:03:00]}  a6 {[%clk 0:03:01]} 8. N5c3 {[%clk 0:02:59]}  Nf6 {[%clk 0:03:00]} 9. Bg5 {[%clk 0:03:00]}  Be7 {[%clk 0:02:58]} 10. Na3 {[%clk 0:02:59]}  b5 {[%clk 0:02:58]} 11. Bxf6 {[%clk 0:02:58]}  Bxf6 {[%clk 0:02:57]} 12. Nd5 {[%clk 0:02:58]}  O-O {[%clk 0:02:51]} 13. c3 {[%clk 0:02:58]}  Bg5 {[%clk 0:02:42]} 14. Nc2 {[%clk 0:02:57]}  f5 {[%clk 0:02:41]} 15. exf5 {[%clk 0:02:56]}  Bxf5 {[%clk 0:02:40]} 16. Nce3 {[%clk 0:02:56]}  Be6 {[%clk 0:02:31]} 17. Be2 {[%clk 0:02:55]}  Ra7 {[%clk 0:02:26]} 18. Bf3 {[%clk 0:02:55]}  Raf7 {[%clk 0:02:19]} 19. Qe2 {[%clk 0:02:54]}  Kh8 {[%clk 0:01:39]} 20. O-O-O {[%clk 0:02:49]}  Qa5 {[%clk 0:01:25]} 21. Kb1 {[%clk 0:02:47]}  b4 {[%clk 0:01:24]} 22. Nc4 {[%clk 0:02:35]}  Qd8 {[%clk 0:01:12]} 23. Ndb6 {[%clk 0:02:30]}  d5 {[%clk 0:00:39]} 24. Bxd5 {[%clk 0:02:19]}  Bxd5 {[%clk 0:00:35]} 25. Rxd5 {[%clk 0:02:17]}  Qc7 {[%clk 0:00:33]} 26. f3 {[%clk 0:02:15]}  bxc3 {[%clk 0:00:33]} 27. bxc3 {[%clk 0:02:09]}  Rb8 {[%clk 0:00:34]} 28. Qf2 {[%clk 0:02:02]}  Bd8 {[%clk 0:00:32]} 29. Ka1 {[%clk 0:01:52]}  h6 {[%clk 0:00:28]} 30. Rhd1 {[%clk 0:01:49]}  Rxb6 {[%clk 0:00:26]} 31. Rxd8+ {[%clk 0:01:49]}  Nxd8 {[%clk 0:00:25]} 32. Nxb6 {[%clk 0:01:48]}  Qxc3+ {[%clk 0:00:25]} 33. Qb2 {[%clk 0:01:47]}  Qxb2+ {[%clk 0:00:22]} 34. Kxb2 {[%clk 0:01:47]}  Ne6 {[%clk 0:00:23]} 35. Nc4 {[%clk 0:01:44]}  Rb7+ {[%clk 0:00:20]} 36. Kc3 {[%clk 0:01:42]}  Rc7 {[%clk 0:00:20]} 37. Rd6 {[%clk 0:01:40]}  Nf4 {[%clk 0:00:18]} 38. g3 {[%clk 0:01:34]}  Ne2+ {[%clk 0:00:15]} 39. Kb4 {[%clk 0:01:31]}  Rb7+ {[%clk 0:00:12]} 40. Rb6 {[%clk 0:01:29]}  Ra7 {[%clk 0:00:10]} 41. Nxe5 {[%clk 0:01:26]}  a5+ {[%clk 0:00:11]} 42. Kc4 {[%clk 0:01:22]}  a4 {[%clk 0:00:10]} 43. f4 {[%clk 0:01:14]}  a3 {[%clk 0:00:09]} 44. f5 {[%clk 0:01:13]}  Kh7 {[%clk 0:00:09]} 45. Ng6 {[%clk 0:01:12]}  Ra8 {[%clk 0:00:07]} 46. Rb7 {[%clk 0:01:11]}  Kg8 {[%clk 0:00:06]} 47. Ne7+ {[%clk 0:01:06]}  Kf7 {[%clk 0:00:06]} 48. Nd5+ {[%clk 0:01:06]}  Kf8 {[%clk 0:00:06]} 49. Nc7 {[%clk 0:00:57]}  Rc8 {[%clk 0:00:05]} 50. Kb4 {[%clk 0:00:55]}  Nd4 {[%clk 0:00:05]} 51. Ne6+ {[%clk 0:00:53]}  Nxe6 {[%clk 0:00:06]} 52. fxe6 {[%clk 0:00:54]}  Rc2 {[%clk 0:00:07]} 53. Kxa3 {[%clk 0:00:52]}  Rxh2 {[%clk 0:00:07]} 54. Rf7+ {[%clk 0:00:51]}  Kg8 {[%clk 0:00:06]} 55. Kb3 {[%clk 0:00:50]}  Re2 {[%clk 0:00:07]} 56. Re7 {[%clk 0:00:49]}  Re3+ {[%clk 0:00:07]} 57. Kb4 {[%clk 0:00:49]}  Rxg3 {[%clk 0:00:08]} 58. a4 {[%clk 0:00:49]}  Re3 {[%clk 0:00:07]} 59. Re8+ {[%clk 0:00:50]}  Kh7 {[%clk 0:00:07]} 60. a5 {[%clk 0:00:50]}  h5 {[%clk 0:00:08]} 61. a6 {[%clk 0:00:50]}  Re1 {[%clk 0:00:07]} 62. a7 {[%clk 0:00:50]}  Rb1+ {[%clk 0:00:08]} 63. Kc3 {[%clk 0:00:50]} 1-0


[Site "https://www.chess.com"]

[Event "Titled Tuesday Blitz January 10 Early 2023"]
[White "Tomaszewski, Kacper"]
[Black "Kalajzic, Ivan"]
[WhiteFideId "1127373"]
[BlackFideId "14506378"]
[WhiteElo "2313"]
[BlackElo "2062"]
[Result "0-1"]
[Round "08"]
[TimeControl "180+2"]
[Date "2023.01.10"]
[WhiteClock "0:00:12"]
[BlackClock "0:00:19"]

1. e4 {[%clk 0:03:00]}  g6 {[%clk 0:02:59]} 2. Nc3 {[%clk 0:02:58]}  Bg7 {[%clk 0:03:00]} 3. Nge2 {[%clk 0:02:58]}  d6 {[%clk 0:03:00]} 4. h3 {[%clk 0:02:56]}  a6 {[%clk 0:03:00]} 5. g4 {[%clk 0:02:55]}  b5 {[%clk 0:03:00]} 6. a3 {[%clk 0:02:53]}  Bb7 {[%clk 0:03:01]} 7. Bg2 {[%clk 0:02:53]}  Nd7 {[%clk 0:03:01]} 8. Ng3 {[%clk 0:02:51]}  c5 {[%clk 0:02:53]} 9. O-O {[%clk 0:02:50]}  e6 {[%clk 0:02:28]} 10. d3 {[%clk 0:02:47]}  Ne7 {[%clk 0:02:27]} 11. f4 {[%clk 0:02:43]}  Qc7 {[%clk 0:02:13]} 12. f5 {[%clk 0:02:33]}  Be5 {[%clk 0:02:03]} 13. Nce2 {[%clk 0:02:25]}  gxf5 {[%clk 0:01:59]} 14. gxf5 {[%clk 0:02:21]}  Rg8 {[%clk 0:01:57]} 15. fxe6 {[%clk 0:02:20]}  fxe6 {[%clk 0:01:55]} 16. Bf4 {[%clk 0:02:13]}  O-O-O {[%clk 0:01:55]} 17. Kh2 {[%clk 0:02:06]}  Ng6 {[%clk 0:01:55]} 18. Bxe5 {[%clk 0:02:03]}  Ndxe5 {[%clk 0:01:55]} 19. Nf4 {[%clk 0:02:01]}  Nxf4 {[%clk 0:01:43]} 20. Rxf4 {[%clk 0:02:02]}  Qg7 {[%clk 0:01:41]} 21. Qe1 {[%clk 0:02:01]}  Qg5 {[%clk 0:01:29]} 22. Qf2 {[%clk 0:01:56]}  h5 {[%clk 0:01:13]} 23. Rg1 {[%clk 0:01:53]}  h4 {[%clk 0:01:09]} 24. Ne2 {[%clk 0:01:53]}  Rd7 {[%clk 0:00:43]} 25. Qxh4 {[%clk 0:01:50]}  Rdg7 {[%clk 0:00:40]} 26. Qxg5 {[%clk 0:01:48]}  Rxg5 {[%clk 0:00:41]} 27. Bh1 {[%clk 0:01:44]}  c4 {[%clk 0:00:36]} 28. d4 {[%clk 0:01:39]}  Nd7 {[%clk 0:00:32]} 29. Rxg5 {[%clk 0:01:35]}  Rxg5 {[%clk 0:00:33]} 30. Rg4 {[%clk 0:01:34]}  Rh5 {[%clk 0:00:32]} 31. Nf4 {[%clk 0:01:32]}  Rh6 {[%clk 0:00:30]} 32. Rg8+ {[%clk 0:01:27]}  Kc7 {[%clk 0:00:30]} 33. Rg7 {[%clk 0:01:25]}  Kd8 {[%clk 0:00:26]} 34. d5 {[%clk 0:01:24]}  exd5 {[%clk 0:00:23]} 35. exd5 {[%clk 0:01:25]}  Nc5 {[%clk 0:00:22]} 36. Rg8+ {[%clk 0:01:10]}  Kc7 {[%clk 0:00:22]} 37. Rg7+ {[%clk 0:01:08]}  Kb6 {[%clk 0:00:22]} 38. Rg6 {[%clk 0:00:47]}  Rxg6 {[%clk 0:00:22]} 39. Nxg6 {[%clk 0:00:48]}  Na4 {[%clk 0:00:21]} 40. b4 {[%clk 0:00:42]}  Nc3 {[%clk 0:00:20]} 41. h4 {[%clk 0:00:40]}  Nxd5 {[%clk 0:00:16]} 42. h5 {[%clk 0:00:38]}  Nf6 {[%clk 0:00:16]} 43. Bxb7 {[%clk 0:00:37]}  Kxb7 {[%clk 0:00:17]} 44. Nf4 {[%clk 0:00:34]}  Kc6 {[%clk 0:00:17]} 45. Kg3 {[%clk 0:00:34]}  d5 {[%clk 0:00:18]} 46. c3 {[%clk 0:00:32]}  Kd6 {[%clk 0:00:18]} 47. h6 {[%clk 0:00:30]}  Ke5 {[%clk 0:00:18]} 48. Kf3 {[%clk 0:00:24]}  d4 {[%clk 0:00:18]} 49. Ng6+ {[%clk 0:00:23]}  Kd5 {[%clk 0:00:17]} 50. Ne7+ {[%clk 0:00:18]}  Ke6 {[%clk 0:00:14]} 51. Ng8 {[%clk 0:00:10]}  dxc3 {[%clk 0:00:15]} 52. Ke3 {[%clk 0:00:08]}  Kf7 {[%clk 0:00:14]} 53. Nxf6 {[%clk 0:00:06]}  Kxf6 {[%clk 0:00:15]} 54. Ke2 {[%clk 0:00:05]}  Kg6 {[%clk 0:00:15]} 55. Kd1 {[%clk 0:00:06]}  Kxh6 {[%clk 0:00:15]} 56. Kc2 {[%clk 0:00:07]}  Kg5 {[%clk 0:00:16]} 57. Kxc3 {[%clk 0:00:08]}  Kf4 {[%clk 0:00:15]} 58. Kd4 {[%clk 0:00:08]}  Kf3 {[%clk 0:00:16]} 59. a4 {[%clk 0:00:09]}  Ke2 {[%clk 0:00:15]} 60. axb5 {[%clk 0:00:05]}  axb5 {[%clk 0:00:16]} 61. Kc5 {[%clk 0:00:06]}  c3 {[%clk 0:00:16]} 62. Kxb5 {[%clk 0:00:07]}  c2 {[%clk 0:00:16]} 63. Ka6 {[%clk 0:00:08]}  c1=Q {[%clk 0:00:17]} 64. b5 {[%clk 0:00:08]}  Qa3+ {[%clk 0:00:17]} 65. Kb6 {[%clk 0:00:09]}  Kd3 {[%clk 0:00:17]} 66. Kc6 {[%clk 0:00:10]}  Kc4 {[%clk 0:00:17]} 67. b6 {[%clk 0:00:11]}  Qc5+ {[%clk 0:00:17]} 68. Kb7 {[%clk 0:00:11]}  Kb5 {[%clk 0:00:18]} 69. Ka8 {[%clk 0:00:12]}  Kxb6 {[%clk 0:00:17]} 70. Kb8 {[%clk 0:00:12]}  Qc7+ {[%clk 0:00:18]} 71. Ka8 {[%clk 0:00:12]}  Qa7# {[%clk 0:00:19]} 0-1


[Site "https://www.chess.com"]

[Event "Titled Tuesday Blitz January 10 Early 2023"]
[White "Shuvalov, Evgenij"]
[Black "Vasques, Antonio Pedro Freixial"]
[WhiteFideId "4187237"]
[BlackFideId "1908332"]
[WhiteElo "2038"]
[BlackElo "2214"]
[Result "1-0"]
[Round "08"]
[TimeControl "180+2"]
[Date "2023.01.10"]
[WhiteClock "0:01:08"]
[BlackClock "0:02:05"]

1. d4 {[%clk 0:03:00]}  Nf6 {[%clk 0:02:51]} 2. c4 {[%clk 0:03:00]}  e6 {[%clk 0:02:50]} 3. Nf3 {[%clk 0:02:59]}  Bb4+ {[%clk 0:02:51]} 4. Nbd2 {[%clk 0:02:59]}  c5 {[%clk 0:02:51]} 5. a3 {[%clk 0:02:56]}  Bxd2+ {[%clk 0:02:51]} 6. Qxd2 {[%clk 0:02:56]}  O-O {[%clk 0:02:49]} 7. e3 {[%clk 0:02:53]}  cxd4 {[%clk 0:02:49]} 8. Nxd4 {[%clk 0:02:50]}  d5 {[%clk 0:02:50]} 9. b3 {[%clk 0:02:50]}  dxc4 {[%clk 0:02:47]} 10. Bxc4 {[%clk 0:02:49]}  b6 {[%clk 0:02:46]} 11. Bb2 {[%clk 0:02:48]}  Bb7 {[%clk 0:02:46]} 12. O-O {[%clk 0:02:48]}  Nbd7 {[%clk 0:02:46]} 13. Rfd1 {[%clk 0:02:44]}  Qe7 {[%clk 0:02:47]} 14. Rac1 {[%clk 0:02:38]}  Rfd8 {[%clk 0:02:45]} 15. Qe2 {[%clk 0:02:38]}  Rac8 {[%clk 0:02:44]} 16. Ba6 {[%clk 0:02:36]}  Nc5 {[%clk 0:02:43]} 17. Bxb7 {[%clk 0:02:34]}  Qxb7 {[%clk 0:02:44]} 18. b4 {[%clk 0:02:28]}  Na4 {[%clk 0:02:38]} 19. b5 {[%clk 0:02:25]}  Ne4 {[%clk 0:02:27]} 20. Nc6 {[%clk 0:02:18]}  Rxd1+ {[%clk 0:02:25]} 21. Rxd1 {[%clk 0:02:19]}  a6 {[%clk 0:02:21]} 22. Bxg7 {[%clk 0:01:51]}  Nac3 {[%clk 0:02:11]} 23. Bxc3 {[%clk 0:01:49]}  Nxc3 {[%clk 0:02:08]} 24. Qg4+ {[%clk 0:01:49]}  Kf8 {[%clk 0:02:08]} 25. Qb4+ {[%clk 0:01:11]}  Ke8 {[%clk 0:02:05]} 26. Qxc3 {[%clk 0:01:09]}  axb5 {[%clk 0:02:05]} 27. Qh8# {[%clk 0:01:08]} 1-0


[Site "https://www.chess.com"]

[Event "Titled Tuesday Blitz January 10 Early 2023"]
[White "Ansh M Shah"]
[Black "Gutkin, Ilya"]
[WhiteFideId "25033379"]
[BlackFideId "16203470"]
[WhiteElo "2171"]
[BlackElo "2273"]
[Result "1-0"]
[Round "08"]
[TimeControl "180+2"]
[Date "2023.01.10"]
[WhiteClock "0:00:03"]
[BlackClock "0:00:04"]

1. d4 {[%clk 0:03:00]}  e6 {[%clk 0:03:00]} 2. c4 {[%clk 0:03:01]}  b6 {[%clk 0:02:58]} 3. g3 {[%clk 0:03:01]}  Bb7 {[%clk 0:02:59]} 4. Nf3 {[%clk 0:03:02]}  Bb4+ {[%clk 0:02:59]} 5. Bd2 {[%clk 0:03:01]}  Bxf3 {[%clk 0:02:58]} 6. exf3 {[%clk 0:03:01]}  Bxd2+ {[%clk 0:02:59]} 7. Qxd2 {[%clk 0:03:02]}  d5 {[%clk 0:02:58]} 8. Bg2 {[%clk 0:02:59]}  Ne7 {[%clk 0:02:56]} 9. f4 {[%clk 0:02:59]}  O-O {[%clk 0:02:55]} 10. O-O {[%clk 0:02:59]}  c6 {[%clk 0:02:55]} 11. b3 {[%clk 0:02:58]}  Nd7 {[%clk 0:02:54]} 12. Nc3 {[%clk 0:02:58]}  Nf6 {[%clk 0:02:53]} 13. Rfd1 {[%clk 0:02:57]}  h5 {[%clk 0:02:52]} 14. h3 {[%clk 0:02:55]}  g6 {[%clk 0:02:52]} 15. Rac1 {[%clk 0:02:54]}  Rc8 {[%clk 0:02:51]} 16. Qe3 {[%clk 0:02:54]}  Nf5 {[%clk 0:02:45]} 17. Qd2 {[%clk 0:02:47]}  Qd7 {[%clk 0:02:43]} 18. Ne2 {[%clk 0:02:42]}  Nd6 {[%clk 0:02:41]} 19. f3 {[%clk 0:02:41]}  dxc4 {[%clk 0:02:15]} 20. bxc4 {[%clk 0:02:40]}  c5 {[%clk 0:02:16]} 21. dxc5 {[%clk 0:02:38]}  Rxc5 {[%clk 0:02:08]} 22. Qxd6 {[%clk 0:02:37]}  Qa4 {[%clk 0:02:08]} 23. Qd4 {[%clk 0:02:22]}  Qxa2 {[%clk 0:02:05]} 24. Rd2 {[%clk 0:02:20]}  Qa3 {[%clk 0:02:02]} 25. Rc3 {[%clk 0:02:03]}  Qa1+ {[%clk 0:01:55]} 26. Nc1 {[%clk 0:01:58]}  Ne8 {[%clk 0:01:48]} 27. Ra2 {[%clk 0:01:50]}  Qb1 {[%clk 0:01:48]} 28. Rxa7 {[%clk 0:01:48]}  Ng7 {[%clk 0:01:45]} 29. g4 {[%clk 0:01:46]}  e5 {[%clk 0:01:40]} 30. fxe5 {[%clk 0:01:43]}  Ne6 {[%clk 0:01:40]} 31. Qe3 {[%clk 0:01:42]}  Rd8 {[%clk 0:01:37]} 32. Kh2 {[%clk 0:01:36]}  h4 {[%clk 0:01:36]} 33. Rb3 {[%clk 0:01:28]}  Qc2 {[%clk 0:01:32]} 34. Rc3 {[%clk 0:01:04]}  Qb2 {[%clk 0:01:27]} 35. Ra2 {[%clk 0:00:59]}  Qb1 {[%clk 0:01:25]} 36. Rd2 {[%clk 0:00:53]}  Ra8 {[%clk 0:01:12]} 37. Nd3 {[%clk 0:00:48]}  Rca5 {[%clk 0:00:44]} 38. Rb2 {[%clk 0:00:46]}  Qa1 {[%clk 0:00:43]} 39. Rcb3 {[%clk 0:00:38]}  Ra2 {[%clk 0:00:41]} 40. Rxb6 {[%clk 0:00:19]}  R8a3 {[%clk 0:00:28]} 41. Qh6 {[%clk 0:00:17]}  Rxd3 {[%clk 0:00:24]} 42. Rb8+ {[%clk 0:00:15]}  Rd8 {[%clk 0:00:24]} 43. Rxd8+ {[%clk 0:00:15]}  Nxd8 {[%clk 0:00:24]} 44. Rxa2 {[%clk 0:00:14]}  Qxa2 {[%clk 0:00:23]} 45. Qxh4 {[%clk 0:00:14]}  Ne6 {[%clk 0:00:22]} 46. Qg3 {[%clk 0:00:12]}  Qxc4 {[%clk 0:00:18]} 47. h4 {[%clk 0:00:09]}  Nf4 {[%clk 0:00:12]} 48. h5 {[%clk 0:00:08]}  Ne2 {[%clk 0:00:11]} 49. Qf2 {[%clk 0:00:08]}  Qf4+ {[%clk 0:00:11]} 50. Kh1 {[%clk 0:00:07]}  Ng3+ {[%clk 0:00:10]} 51. Kg1 {[%clk 0:00:07]}  gxh5 {[%clk 0:00:10]} 52. gxh5 {[%clk 0:00:06]}  Qxe5 {[%clk 0:00:11]} 53. f4 {[%clk 0:00:04]}  Qa1+ {[%clk 0:00:10]} 54. Kh2 {[%clk 0:00:04]}  Nxh5 {[%clk 0:00:11]} 55. Bf3 {[%clk 0:00:04]}  Nf6 {[%clk 0:00:10]} 56. Qg3+ {[%clk 0:00:04]}  Kf8 {[%clk 0:00:10]} 57. Qg5 {[%clk 0:00:04]}  Qc3 {[%clk 0:00:10]} 58. Kg2 {[%clk 0:00:02]}  Qd2+ {[%clk 0:00:10]} 59. Kg3 {[%clk 0:00:02]}  Qd4 {[%clk 0:00:10]} 60. Qe5 {[%clk 0:00:01]}  Qg1+ {[%clk 0:00:10]} 61. Kh3 {[%clk 0:00:01]}  Qf1+ {[%clk 0:00:09]} 62. Kg3 {[%clk 0:00:01]}  Qg1+ {[%clk 0:00:09]} 63. Kh3 {[%clk 0:00:02]}  Ne8 {[%clk 0:00:07]} 64. Bg2 {[%clk 0:00:02]}  Qc1 {[%clk 0:00:06]} 65. Kg3 {[%clk 0:00:02]}  Qa3+ {[%clk 0:00:06]} 66. Bf3 {[%clk 0:00:03]}  Nd6 {[%clk 0:00:05]} 67. Qd5 {[%clk 0:00:03]}  Ke7 {[%clk 0:00:05]} 68. Qa8 {[%clk 0:00:04]}  Nf5+ {[%clk 0:00:04]} 69. Kg4 {[%clk 0:00:04]}  Ne3+ {[%clk 0:00:04]} 70. Kg3 {[%clk 0:00:04]}  Nf1+ {[%clk 0:00:03]} 71. Kg2 {[%clk 0:00:04]}  Nd2 {[%clk 0:00:04]} 72. Qxa3+ {[%clk 0:00:03]} 1-0


[Site "https://www.chess.com"]

[Event "Titled Tuesday Blitz January 10 Early 2023"]
[White "Perez Rodriguez, Jennifer"]
[Black "Buchenau, Frank"]
[WhiteFideId "3507831"]
[BlackFideId "4604350"]
[WhiteElo "2242"]
[BlackElo "2222"]
[Result "1-0"]
[Round "08"]
[TimeControl "180+2"]
[Date "2023.01.10"]
[WhiteClock "0:00:32"]
[BlackClock "0:00:24"]

1. e4 {[%clk 0:03:00]}  e6 {[%clk 0:02:59]} 2. d4 {[%clk 0:03:00]}  d5 {[%clk 0:03:00]} 3. Bd3 {[%clk 0:03:00]}  dxe4 {[%clk 0:02:59]} 4. Bxe4 {[%clk 0:03:00]}  Nf6 {[%clk 0:03:00]} 5. Bf3 {[%clk 0:03:00]}  c5 {[%clk 0:03:00]} 6. Ne2 {[%clk 0:03:00]}  Nc6 {[%clk 0:03:01]} 7. Be3 {[%clk 0:03:00]}  cxd4 {[%clk 0:02:59]} 8. Nxd4 {[%clk 0:03:00]}  Ne5 {[%clk 0:02:59]} 9. Nc3 {[%clk 0:03:00]}  a6 {[%clk 0:02:59]} 10. Qe2 {[%clk 0:03:00]}  Nxf3+ {[%clk 0:02:59]} 11. Qxf3 {[%clk 0:02:51]}  e5 {[%clk 0:02:58]} 12. Nf5 {[%clk 0:02:43]}  Qa5 {[%clk 0:02:57]} 13. O-O-O {[%clk 0:02:37]}  e4 {[%clk 0:02:55]} 14. Nxe4 {[%clk 0:02:19]}  Qxf5 {[%clk 0:02:55]} 15. Nxf6+ {[%clk 0:02:10]}  gxf6 {[%clk 0:02:50]} 16. Qg3 {[%clk 0:01:48]}  Be6 {[%clk 0:02:44]} 17. Rhe1 {[%clk 0:01:32]}  Bc5 {[%clk 0:02:22]} 18. Bxc5 {[%clk 0:01:25]}  Qxc5 {[%clk 0:02:21]} 19. Kb1 {[%clk 0:01:20]}  Rc8 {[%clk 0:02:17]} 20. c3 {[%clk 0:01:18]}  Qg5 {[%clk 0:02:08]} 21. Qd6 {[%clk 0:01:06]}  Qc5 {[%clk 0:01:22]} 22. Rxe6+ {[%clk 0:00:54]}  fxe6 {[%clk 0:01:23]} 23. Qxe6+ {[%clk 0:00:54]}  Kf8 {[%clk 0:01:21]} 24. Qxf6+ {[%clk 0:00:47]}  Kg8 {[%clk 0:01:19]} 25. Qe6+ {[%clk 0:00:47]}  Kf8 {[%clk 0:01:15]} 26. Rd5 {[%clk 0:00:43]}  Qc7 {[%clk 0:00:30]} 27. Rf5+ {[%clk 0:00:31]}  Kg7 {[%clk 0:00:27]} 28. Qf6+ {[%clk 0:00:30]}  Kg8 {[%clk 0:00:25]} 29. Rg5+ {[%clk 0:00:31]}  Qg7 {[%clk 0:00:24]} 30. Rxg7# {[%clk 0:00:32]} 1-0


[Site "https://www.chess.com"]